Cogmind - Beta 17 @@@ ROGUE MODE // 2026.07.09 @ 09:07:28 Player: hanzu Result: Self-destructed Performance ------------- Evolutions (0) 0 Regions Visited (3) 600 Robots Destroyed (29) 145 Value Destroyed (700) 700 Prototype IDs (0) 0 Alien Tech Used (0) 0 Bonus (0) 0 TOTAL SCORE: 1445 Bonus ------- None Cogmind --------- Core Integrity 121/250 Matter 137/300 Energy 100/100 System Corruption 5% Temperature Cool (0) Movement Core (250) Ox4 Location -8/Scraptown Parts ------- > --- POWER (1) -------- Subdweller Power Source > --- PROPULSION (2) --- Subdweller Monowheel Subdweller Monowheel > --- UTILITY (2) ------ Subdweller Optics Improved Terrain Scanner > --- WEAPON (2) ------- Barrage Gun Makeshift Shrapnel Gun > --- INVENTORY (5) ---- Subdweller Monowheel Large Storage Unit High-capacity Matter Pod (175) Battle Cannon Subdweller Shrapnel Launcher Peak State ------------ > --- POWER ------------ Subdweller Power Source > --- PROPULSION ------- Subdweller Monowheel Subdweller Monowheel > --- UTILITY ---------- Subdweller Optics Improved Terrain Scanner > --- WEAPON ----------- Barrage Gun Makeshift Shrapnel Gun > --- INVENTORY -------- Subdweller Monowheel Large Storage Unit High-capacity Matter Pod Battle Cannon Subdweller Shrapnel Launcher [Rating: 18] Favorites ----------- Power Light Ion Engine Engine Light Ion Engine Propulsion Light Treads Treads Light Treads Wheel Subdweller Monowheel Utility Subdweller Optics Device Subdweller Optics Storage Large Storage Unit Protection Backup Plating I Weapon Assault Rifle Energy Gun EM Pulse Gun Energy Cannon Subdweller Beam Cannon Ballistic Gun Assault Rifle Ballistic Cannon Battle Cannon Launcher Subdweller Shrapnel Launcher Build | -11 -10 -10 -8 ------- Run | Yrd Mat Sub Scr Slots Evolved . | . . . . Power . | . . . . Propulsion . | . . . . Utility . | . . . . Weapon . | . . . . Parts Attached 27 | 6 4 17 . Power 4 | 1 1 2 . Engine 4 | 1 1 2 . Core . | . . . . Reactor . | . . . . Propulsion 6 | 2 . 4 . Treads 3 | 2 . 1 . Leg . | . . . . Wheel 3 | . . 3 . Hover . | . . . . Flight . | . . . . Utility 6 | 1 1 4 . Device 4 | . . 4 . Storage 2 | 1 1 . . Processor . | . . . . Hackware . | . . . . Protection . | . . . . Artifact . | . . . . Weapon 11 | 2 2 7 . Energy Gun 1 | . 1 . . Energy Cannon 1 | . . 1 . Ballistic Gun 7 | 2 1 4 . Ballistic Cannon 1 | . . 1 . Launcher 1 | . . 1 . Special Weapon . | . . . . Impact Weapon . | . . . . Slashing Weapon . | . . . . Piercing Weapon . | . . . . Special Melee Weapon . | . . . . Unidentified Prototypes . | . . . . Corrupted Parts 2 | . . 2 . System Corruption 5 | . . 5 . Parts Lost 10 | . . 10 . Power 2 | . . 2 . Propulsion 3 | . . 3 . Utility 2 | . . 2 . Weapon 3 | . . 3 . Highest Loss Streak 5 | . . 5 . To Critical Strikes . | . . . . Average Backups 4 | 1 4 4 . Power . | . . . . Propulsion . | . . . . Utility 2 | . 2 2 . Weapon . | . . 1 . Tool/Special . | . . . . Unused Backups 3 | . 1 . 2 Power 1 | . 1 . . Propulsion 1 | . . . 1 Utility 1 | . . . 1 Weapon . | . . . . Tool/Special . | . . . . Average Slot Usage (%) 94 | . 98 91 . Engine 12 | . 14 11 . Treads 14 | . 28 4 . Wheel 11 | . . 20 . Device 14 | . . 25 . Storage 6 | . 14 . . Protection 6 | . 12 . . Energy Gun 1 | . 1 1 . Ballistic Gun 23 | . 26 21 . Launcher 1 | . . 2 . Peak Build Rating 18 | 6 7 18 . Average Rating 10 | 5 6 14 . On Entrance 7 | . 6 7 18 Avg Prop Armor Cover (%) 6 | . . 6 . Naked Turns . | . . . . Heaviest Build 30 | 11 30 19 . Greatest Support 40 | 40 40 40 . Greatest Overweight (x) 4 | . . 4 . Average Overweight (x) . | . . . . Largest Inventory Capacity 15 | 8 15 5 . Average Capacity 8 | 7 12 5 . Most Carried 7 | 2 7 5 . Average Carried 4 | 1 4 4 . Final Capacity 15 | 8 15 5 5 Final Carried 5 | 2 5 5 5 Class Distribution -------------------- 59% | Mutant 40% | Scavenger-Mutant Dominant Class ---------------- Mutant | -10/Materials Scavenger-Mutant | -10/Subcaves Scavenger-Mutant | -8/Scraptown Resources | -11 -10 -10 -8 ----------- Run | Yrd Mat Sub Scr Matter Collected 1100 | 324 380 396 . Remotely . | . . . . Salvage Created 888 | 179 359 350 . Parts 52 | 8 18 26 . Haulers Intercepted 1 | . 1 . . Recyclers Shooed 1 | 1 . . . Parts Field Recycled . | . . . . Retrieved Matter . | . . . . Parts Self-Destructed 13 | . . 13 . Prevented . | . . . . Parts Restored . | . . . . Kills | -11 -10 -10 -8 ------- Run | Yrd Mat Sub Scr Combat Hostiles Destroyed 17 | . 7 10 . Guns 13 | . 7 6 . Cannons 2 | . . 2 . AOE 2 | . . 2 . Classes Destroyed 9 | 2 5 2 . Tunneler 4 | 4 . . . Hauler 1 | . 1 . . Recycler 1 | 1 . . . Operator 2 | . 2 . . Turret 2 | . . 2 . Watcher 2 | . 2 . . Swarmer 4 | . 2 2 . Grunt 5 | . 5 . . Subdweller 8 | . . 8 . Best Kill Streak 4 | 2 4 3 . Combat Bots Only 3 | . 3 3 . Max Kills in Single Turn 1 | 1 1 1 . Gunslinging . | . . . . Exploded 1 | . . 1 . Melee . | . . . . Uniques/NPCs Destroyed . | . . . . Combat | -11 -10 -10 -8 -------- Run | Yrd Mat Sub Scr Hostile Shots Fired 87 | . 21 66 . Missed 19 | . 6 13 . Hits 68 | . 15 53 . Projectile 68 | . 15 53 . AOE 5 | . . 5 . Critical Strikes 2 | . . 2 . Damage Taken 1266 | . 160 1106 . Core 129 | . . 129 . Absorbed by Shields . | . . . . Core Remaining (%) 100 | 100 . . . Volleys Fired 113 | 16 40 57 . Largest 2 | 2 2 2 . Hottest 108 | 40 60 108 . Shots Fired 203 | 32 80 91 . Gun 189 | 32 80 77 . Cannon 10 | . . 10 . Launcher 4 | . . 4 . Special . | . . . . Kinetic 175 | 32 78 65 . Thermal 10 | . . 10 . Explosive . | . . . . Electromagnetic 18 | . 2 16 . Robot Hit Streak 20 | 13 20 16 . Robot Miss Streak 3 | 1 3 3 . Penetration Max . | . . . . Secondary Targets . | . . . . Shots Hit Robots 140 | 24 51 65 . Core Hits 51 | 8 21 22 . Critical Kills . | . . . . Critical Parts Destroyed 1 | 1 . . . Critical Strikes 1 | 1 . . . Destroy 1 | 1 . . . Melee Attacks . | . . . . Impact . | . . . . Slashing . | . . . . Piercing . | . . . . Sneak Attacks . | . . . . Combat Hostiles . | . . . . Follow-up Attacks . | . . . . Damage Inflicted 1921 | 254 613 1054 . Guns 1524 | 254 613 657 . Cannons 190 | . . 190 . Explosions 207 | . . 207 . Melee . | . . . . Ramming . | . . . . Kinetic 1613 | 254 580 779 . Thermal 190 | . . 190 . Explosive . | . . . . Electromagnetic 118 | . 33 85 . Impact . | . . . . Slashing . | . . . . Piercing . | . . . . Highest Corruption 5 | . . 5 . Average Corruption 4 | . . 4 . Corruption Purged . | . . . . Corruption Blocked . | . . . . Effects 26 | . . 26 . Message Errors 10 | . . 10 . Matter Fused 7 | . . 7 . Heat Flow Errors 1 | . . 1 . Parts Rejected 1 | . . 1 . Data Loss (minor) 4 | . . 4 . Misfires 3 | . . 3 . Overload Shots . | . . . . Overflow Damage 40 | . . 40 . Projectiles . | . . . . Explosions 40 | . . 40 . Melee . | . . . . Knockbacks . | . . . . Impact . | . . . . Kinetic . | . . . . Secondary . | . . . . Self-Inflicted Damage . | . . . . Shots . | . . . . Rammed . | . . . . Targets Rammed . | . . . . Kicked . | . . . . Crushed . | . . . . Highest Temperature 250 | . 8 250 . Average Temperature 30 | . 2 70 . Received Heat Transfer 500 | . 78 422 . Siege Activations . | . . . . Martial Activations . | . . . . Shielding Activations . | . . . . Robots Disrupted . | . . . . Combat Hostiles . | . . . . Robots Corrupted . | . . . . Combat Hostiles . | . . . . Parts Fried . | . . . . Impact Corruptions . | . . . . Robots Melted . | . . . . Combat Hostiles . | . . . . Parts Melted . | . . . . Heat Transferred 259 | . . 259 . Parts Sabotaged . | . . . . Parts Stolen . | . . . . Parts Stripped . | . . . . Power Chain Reactions . | . . . . Alert | -11 -10 -10 -8 ------- Run | Yrd Mat Sub Scr Maximum Alert Level . | . . . . Low Security (%) 100 | 100 100 . . Level 1 . | . . . . Level 2 . | . . . . Level 3 . | . . . . Level 4 . | . . . . Level 5 . | . . . . High Security . | . . . . Max Security . | . . . . Peak Influence 90 | 10 90 . . Initial . | . . . . Average 21 | 1 25 . . Influence Increases 478 | 25 283 170 . Destroy 0b10 Robot/C 220 | . 140 80 . Destroy 0b10 Robot/NC 50 | 25 25 . . Destroy Leader 56 | . 56 . . Successful Hack 16 | . 16 . . Disable Machine 15 | . 15 . . Destroy Structure 1 | . 1 . . Lose Combat Pursuer 120 | . 30 90 . Influence Decreases 478 | 25 221 232 . Entered New Map 30 | . . 30 . Time Decay 446 | 25 221 200 . Lost Part 2 | . . 2 . Squads Dispatched 4 | . 4 . . Investigation 1 | . 1 . . Extermination . | . . . . Reinforcement 3 | . 3 . . Assault . | . . . . Garrison . | . . . . Intercept . | . . . . Searches Triggered . | . . . . Construction Impeded . | . . . . Haulers Reinforced . | . . . . Active Scanning Responses . | . . . . Cargo Convoy Interrupts . | . . . . Stealth | -11 -10 -10 -8 --------- Run | Yrd Mat Sub Scr Distress Signals 1 | . 1 . . Communications Jammed . | . . . . Distress Signals . | . . . . Times Spotted 31 | . 18 13 . Peak Tracking Total 3 | . 3 3 . Tactical Retreats 5 | . 2 3 . Traps | -11 -10 -10 -8 ------- Run | Yrd Mat Sub Scr Traps Triggered 1 | . 1 . . Indirectly . | . . . . Trap Hack Attempts . | . . . . Triggered . | . . . . Disarmed . | . . . . Reprogrammed . | . . . . Reused . | . . . . Traps Extracted . | . . . . Installed . | . . . . Triggered . | . . . . Machines | -11 -10 -10 -8 ---------- Run | Yrd Mat Sub Scr Machines Disabled 3 | . 1 2 . Max in Single Turn 2 | . 1 2 . Machines Repaired . | . . . . Machines Dismantled . | . . . . Machines Sabotaged . | . . . . Overloaded Fab Kills . | . . . . Hacking | -11 -10 -10 -8 --------- Run | Yrd Mat Sub Scr Machines Accessed 2 | . 2 . . Terminals 1 | . 1 . . Fabricators . | . . . . Repair Stations 1 | . 1 . . Recycling Units . | . . . . Scanalyzers . | . . . . Garrison Access . | . . . . Total Hacks 5 | . 5 . . Successful 3 | . 3 . . Failed 1 | . 1 . . Catastrophic . | . . . . Database Lockouts 1 | . 1 . . Manual 4 | . 4 . . Terminals 4 | . 4 . . Fabricators . | . . . . Repair Stations 1 | . 1 . . Recycling Units . | . . . . Scanalyzers . | . . . . Garrison Access . | . . . . Terminal Hacks 1 | . 1 . . Robot Analysis 1 | . 1 . . Fabricator Hacks . | . . . . Repair Station Hacks 1 | . 1 . . Refit 1 | . 1 . . Recycling Unit Hacks . | . . . . Scanalyzer . | . . . . Garrison Access Hacks . | . . . . Unauthorized Hacks 1 | . 1 . . Terminals 1 | . 1 . . Skim 1 | . 1 . . Fabricators . | . . . . Repair Stations . | . . . . Recycling Units . | . . . . Scanalyzers . | . . . . Garrison Access . | . . . . Data Cores Recovered . | . . . . Used . | . . . . Hacking Detections 1 | . 1 . . Full Trace Events . | . . . . Feedback Events . | . . . . Feedback Blocked . | . . . . Robot Schematics Acquired . | . . . . Robots Built . | . . . . Authchips . | . . . . Time . | . . . . Total Robot Build Rating . | . . . . Part Schematics Acquired . | . . . . Parts Built . | . . . . Authchips . | . . . . Time . | . . . . Total Part Build Rating . | . . . . Part Studies Acquired . | . . . . Parts Repaired . | . . . . Time . | . . . . Parts Recycled . | . . . . Recycled Matter . | . . . . Retrieved Matter . | . . . . Retrieved Components . | . . . . Parts Scanalyzed . | . . . . Part Schematics Acquired . | . . . . Parts Damaged . | . . . . Bothacking | -11 -10 -10 -8 ------------ Run | Yrd Mat Sub Scr Used RIF Installer . | . . . . Robots Hacked . | . . . . Non-combat . | . . . . Combat . | . . . . Robot Hacks Applied . | . . . . Relay Couplers Released . | . . . . Fabnet Peak Effective % . | . . . . Robots Rewired . | . . . . Allies Hacked . | . . . . Hacks Repelled . | . . . . Allies | -11 -10 -10 -8 -------- Run | Yrd Mat Sub Scr Total Allies . | . . . . Largest Group . | . . . . Highest-Rated Group . | . . . . Highest-Rated Ally . | . . . . Total Orders . | . . . . Ally Attacks . | . . . . Total Damage . | . . . . Kills . | . . . . Allies Corrupted . | . . . . Allies Melted . | . . . . Intel | -11 -10 -10 -8 ------- Run | Yrd Mat Sub Scr Active Infowar (turns) 980 | . . 980 . Optics 870 | . . 870 . Sensors 192 | . . 192 . Terrain 735 | . . 735 . Robot Analysis Total 1 | . 1 . . Derelict Logs Recovered . | . . . . Drone Launches . | . . . . Drone Recoveries . | . . . . Exploration | -11 -10 -10 -8 ------------- Run | Yrd Mat Sub Scr Turns Passed 1886 | 149 742 995 . Spaces Moved 1093 | 62 376 655 . Core 47 | 4 . 43 . Treads 472 | 58 376 38 . Legs . | . . . . Wheels 574 | . . 574 . Hover . | . . . . Flight . | . . . . Fastest Speed 50 | 50 160 100 . Average Speed 136 | 152 160 120 . Slowest Speed 250 | 160 160 250 . Overloaded Moves . | . . . . Propulsion Burnouts . | . . . . Robots Hopped . | . . . . Potential Cave-ins . | . . . . Cave-ins Triggered . | . . . . Exploration Rate (%) 35 | 3 61 42 . Regions Visited 3 Branch Regions 2 Pre-discovered Areas 1 | . . 1 . Known Exits Taken . | . . . . Unknown Exits Taken 3 | 1 1 1 . Scrap Searched 2 | . . 2 . Spaces Dug . | . . . . Terrain Destroyed 51 | . . 51 . Melee . | . . . . Projectile . | . . . . AOE 51 | . . 51 . Terrain Rammed . | . . . . Walls Destroyed . | . . . . Machines Disabled . | . . . . Actions | -11 -10 -10 -8 --------- Run | Yrd Mat Sub Scr Total 1296 | 85 442 769 . Wait 37 | . 12 25 . Move 1090 | 61 375 654 . Hop . | . . . . Pick Up 12 | 2 5 5 . Fast Attach 17 | 6 . 11 . Attach 7 | . 2 5 . Detach . | . . . . Swap 9 | . 3 6 . Drop 11 | . 5 6 . Fire 113 | 16 40 57 . Melee . | . . . . Ram . | . . . . Kick . | . . . . Crush . | . . . . Escape Stasis . | . . . . Rewire . | . . . . Trap . | . . . . Miscellaneous . | . . . . Route ------- -11/Scrapyard -10/Materials (discovered 4 exits: [*Mat x2] / [*Min] / [*Sub]) -10/Subcaves (discovered 4 exits: [*Mat x2] / [*Rec] / [*Scr]) -8/Scraptown History --------- Turn | Location | Event 25 | -11/Scrapyard | Discovered new exit (range 15) 150 | -11/Scrapyard | Entered Materials 185 | -10/Materials | Discovered new exit (range 15) 303 | -10/Materials | Build established: Mutant 456 | -10/Materials | Discovered new exit (range 10) 742 | -10/Materials | Central database locked down 827 | -10/Materials | Discovered new exit (range 5) 880 | -10/Materials | Discovered new exit (range 9) 892 | -10/Materials | Entered Subcaves 893 | -10/Subcaves | Approached by a straggling Scientist 1010 | -10/Subcaves | Lost 3 parts (1n1u1w) 1060 | -10/Subcaves | Shifting Twisted Machinery released Barrage Gun 1069 | -10/Subcaves | Ambushed by Subdwellers from Twisted Machinery 1111 | -10/Subcaves | Ambushed by Subdweller buried in earth 1115 | -10/Subcaves | Ambushed by Subdweller buried in earth 1162 | -10/Subcaves | Lost 5 parts (1p2n1u1w) 1167 | -10/Subcaves | Discovered new exit (range 5) 1269 | -10/Subcaves | Shifting Twisted Machinery released Shrapnel Trap 1342 | -10/Subcaves | Core integrity fell below 50% 1360 | -10/Subcaves | Discovered new exit (range 11) 1428 | -10/Subcaves | Build established: Scavenger-Mutant 1433 | -10/Subcaves | Learned location of Zion (-6) 1433 | -10/Subcaves | Met a Zionite searching for "candidates" 1581 | -10/Subcaves | Discovered new exit (range 9) 1887 | -10/Subcaves | Entered Scraptown 1887 | -8/Scraptown | Self-destructed Last Messages --------------- 01581_ EXIT=FOUND 01585_ Sub. Monowheel shoots sparks and powers down. PP-PAD(c): "I think it's somewhere northwest of here" 01625_ System corrupted: Component data lost. PP-PAD(c): "We're getting close, I can feel it." 01662_ Sub. Power Source shoots sparks and powers down. 01670_ System corrupted: FCS attempts to trigger Barrage Gun. 01670_ System corrupted: Barrage Gun misfires. 01709_ BNN1MA2:W7 KWF=BQ,8KCVIMP5P9MALXLASL0, 01730_ System corrupted: Matter fused (-9). 01757_ GWOAR